Cogmind - Beta 14 @@@ ROGUE MODE // 2025.03.23 @ 19:30:35 Player: LightKnight Result: Destroyed by P-60 Hacker with Shock Rifle Performance ------------- Evolutions (0) 0 Regions Visited (3) 600 Robots Destroyed (11) 55 Value Destroyed (333) 333 Prototype IDs (24) 480 Alien Tech Used (0) 0 Bonus (300) 300 TOTAL SCORE: 1768 Bonus ------- Aligned with FarCom 300 Cogmind --------- Core Integrity 0/250 Matter 300/300 Energy 100/100 System Corruption 1% Temperature Cool (0) Movement Core (50) Location -10/Exiles Parts ------- > --- POWER (1) -------- (None) > --- PROPULSION (2) --- (None) > --- UTILITY (2) ------ (None) > --- WEAPON (2) ------- (None) > --- INVENTORY (5) ---- Light Treads AWS/Autocannon Signal Generator Peak State ------------ > --- POWER ------------ Ion Engine > --- PROPULSION ------- Aluminum Leg Aluminum Leg > --- UTILITY ---------- Small Storage Unit Thief Drone Bay > --- WEAPON ----------- EM Pulse Gun Small Laser > --- INVENTORY -------- Light Treads Light Treads Modified TNC AWS/Autocannon Mining Laser Signal Generator [Rating: 17] Favorites ----------- Power Ion Engine Engine Ion Engine Propulsion Aluminum Leg Leg Aluminum Leg Utility Small Storage Unit Device Thief Drone Bay Storage Small Storage Unit Protection Light Armor Plating Weapon EM Pulse Gun Energy Gun EM Pulse Gun Ballistic Gun Assault Rifle Special Weapon Mining Laser Build | -11 -10 -10 -10 ------- Run | Yrd Mat Min Exi Slots Evolved . | . . . . Power . | . . . . Propulsion . | . . . . Utility . | . . . . Weapon . | . . . . Parts Attached 9 | . 6 2 1 Power 2 | . 2 . . Engine 2 | . 2 . . Core . | . . . . Reactor . | . . . . Propulsion 3 | . 3 . . Treads . | . . . . Leg 3 | . 3 . . Wheel . | . . . . Hover . | . . . . Flight . | . . . . Utility 2 | . 1 1 . Device 1 | . . 1 . Storage . | . . . . Processor . | . . . . Hackware . | . . . . Protection 1 | . 1 . . Artifact . | . . . . Weapon 2 | . . 1 1 Energy Gun 1 | . . 1 . Energy Cannon . | . . . . Ballistic Gun . | . . . . Ballistic Cannon . | . . . . Launcher . | . . . . Special Weapon 1 | . . . 1 Impact Weapon . | . . . . Slashing Weapon . | . . . . Piercing Weapon . | . . . . Special Melee Weapon . | . . . . Unidentified Prototypes 1 | . . 1 . Parts Lost 3 | . . . 3 Power . | . . . . Propulsion 1 | . . . 1 Utility . | . . . . Weapon 2 | . . . 2 Highest Loss Streak 3 | . . . 3 To Critical Strikes . | . . . . Average Slot Usage (%) 99 | . 98 100 100 Engine 14 | . 14 14 14 Leg 28 | . 28 28 28 Device 12 | . . 5 14 Storage 14 | . 14 14 14 Protection 1 | . 12 8 . Energy Gun 15 | . 14 16 15 Ballistic Gun 2 | . 14 11 . Special Weapon 10 | . . . 12 Peak Build Rating 17 | 6 8 14 17 Average Rating 15 | 6 7 10 16 On Entrance 8 | 6 6 8 14 Naked Turns 4 | . . . 4 Heaviest Build 17 | 11 16 17 17 Greatest Support 20 | 20 20 20 20 Greatest Overweight (x) . | . . . . Average Overweight (x) . | . . . . Largest Inventory Capacity 8 | 8 8 8 8 Average Capacity 7 | 8 8 8 7 Most Carried 8 | 6 8 8 8 Average Carried 7 | 6 7 7 7 Final Capacity 8 | 8 8 8 5 Final Carried 8 | 6 8 8 5 Class Distribution -------------------- 100% | Mutant Dominant Class ---------------- Mutant | -10/Materials Mutant | -10/Mines Mutant | -10/Exiles Resources | -11 -10 -10 -10 ----------- Run | Yrd Mat Min Exi Matter Collected 383 | 200 126 57 . Remotely . | . . . . Salvage Created 364 | . 313 51 . Parts 23 | . 22 1 . Haulers Intercepted . | . . . . Recyclers Shooed . | . . . . Parts Field Recycled . | . . . . Retrieved Matter . | . . . . Parts Self-Destructed . | . . . . Prevented . | . . . . Kills | -11 -10 -10 -10 ------- Run | Yrd Mat Min Exi Combat Hostiles Destroyed 10 | . 9 1 . Guns 10 | . 9 1 . Classes Destroyed 3 | . 3 . . Watcher 1 | . 1 . . Swarmer 3 | . 3 . . Grunt 7 | . 6 1 . Best Kill Streak 2 | . 2 1 . Combat Bots Only 2 | . 2 1 . Max Kills in Single Turn 1 | . 1 1 . Gunslinging . | . . . . Exploded . | . . . . Melee . | . . . . Uniques/NPCs Destroyed . | . . . . Combat | -11 -10 -10 -10 -------- Run | Yrd Mat Min Exi Hostile Shots Fired 83 | . 33 12 38 Missed 22 | . 5 4 13 Damage Taken 806 | . 310 113 383 Core 258 | . 58 26 174 Absorbed by Shields . | . . . . Core Remaining (%) 100 | 100 . . . Volleys Fired 101 | . 29 8 64 Largest 2 | . 2 2 1 Hottest 100 | . 60 60 100 Shots Fired 135 | . 56 15 64 Gun 71 | . 56 15 . Cannon . | . . . . Launcher . | . . . . Special 64 | . . . 64 Kinetic 37 | . 29 8 . Thermal 98 | . 27 7 64 Explosive . | . . . . Electromagnetic . | . . . . Robot Hit Streak 14 | . 14 4 . Robot Miss Streak 3 | . 2 3 . Penetration Max . | . . . . Secondary Targets 2 | . 2 . . Max Gunslinging Chain 1 | . 1 . . Shots Hit Robots 47 | . 39 8 . Core Hits 21 | . 20 1 . Critical Kills . | . . . . Critical Parts Destroyed . | . . . . Critical Strikes . | . . . . Melee Attacks . | . . . . Impact . | . . . . Slashing . | . . . . Piercing . | . . . . Sneak Attacks . | . . . . Combat Hostiles . | . . . . Follow-up Attacks . | . . . . Damage Inflicted 563 | . 468 95 . Guns 556 | . 465 91 . Cannons . | . . . . Explosions . | . . . . Melee . | . . . . Ramming 7 | . 3 4 . Kinetic 290 | . 243 47 . Thermal 266 | . 222 44 . Explosive . | . . . . Electromagnetic . | . . . . Impact . | . . . . Slashing . | . . . . Piercing . | . . . . Highest Corruption 1 | . . . 1 Average Corruption 1 | . . . 1 Corruption Purged . | . . . . Corruption Blocked . | . . . . Overload Shots . | . . . . Overflow Damage 56 | . . . 56 Projectiles . | . . . . Explosions 56 | . . . 56 Melee . | . . . . Knockbacks . | . . . . Impact . | . . . . Kinetic . | . . . . Secondary . | . . . . Self-Inflicted Damage 108 | . . . 108 Shots 1 | . . . 1 Rammed . | . . . . Targets Rammed 3 | . 1 2 . Kicked 3 | . 1 2 . Crushed . | . . . . Highest Temperature 144 | . 108 57 144 Average Temperature 32 | . 35 31 31 Received Heat Transfer 225 | . 159 66 . Siege Activations . | . . . . Robots Corrupted . | . . . . Combat Hostiles . | . . . . Parts Fried . | . . . . Impact Corruptions . | . . . . Robots Melted . | . . . . Combat Hostiles . | . . . . Parts Melted . | . . . . Heat Transferred 600 | . 500 100 . Parts Sabotaged . | . . . . Parts Stolen . | . . . . Parts Stripped . | . . . . Power Chain Reactions . | . . . . Alert | -11 -10 -10 -10 ------- Run | Yrd Mat Min Exi Peak Influence 323 | . 323 125 . Initial 125 | . . 125 . Average 110 | . 160 86 . Maximum Alert Level 1 | . 1 . . Low Security (%) 87 | 100 66 100 . Level 1 12 | . 33 . . Level 2 . | . . . . Level 3 . | . . . . Level 4 . | . . . . Level 5 . | . . . . High Security . | . . . . Max Security . | . . . . Squads Dispatched 1 | . 1 . . Investigation . | . . . . Extermination . | . . . . Reinforcement 1 | . 1 . . Assault . | . . . . Garrison . | . . . . Intercept . | . . . . Searches Triggered . | . . . . Construction Impeded . | . . . . Haulers Reinforced . | . . . . Active Scanning Responses . | . . . . Cargo Convoy Interrupts . | . . . . Stealth | -11 -10 -10 -10 --------- Run | Yrd Mat Min Exi Distress Signals . | . . . . Communications Jammed . | . . . . Distress Signals . | . . . . Times Spotted 48 | . 15 2 31 Peak Tracking Total 21 | . 4 2 21 Tactical Retreats 14 | . 2 . 12 Traps | -11 -10 -10 -10 ------- Run | Yrd Mat Min Exi Traps Triggered . | . . . . Indirectly . | . . . . Trap Hack Attempts . | . . . . Triggered . | . . . . Disarmed . | . . . . Reprogrammed . | . . . . Reused . | . . . . Traps Extracted . | . . . . Installed . | . . . . Triggered . | . . . . Machines | -11 -10 -10 -10 ---------- Run | Yrd Mat Min Exi Machines Disabled 5 | . 1 . 4 Max in Single Turn 2 | . 1 . 2 Machines Repaired . | . . . . Machines Dismantled . | . . . . Machines Sabotaged . | . . . . Overloaded Fab Kills . | . . . . Hacking | -11 -10 -10 -10 --------- Run | Yrd Mat Min Exi Machines Accessed 4 | . 2 1 1 Terminals 2 | . 2 . . Fabricators . | . . . . Repair Stations . | . . . . Recycling Units . | . . . . Scanalyzers . | . . . . Garrison Access . | . . . . Total Hacks 7 | . 5 1 1 Successful 3 | . 1 1 1 Failed 4 | . 4 . . Catastrophic 2 | . 2 . . Database Lockouts . | . . . . Manual 6 | . 5 . 1 Terminals 5 | . 5 . . Fabricators . | . . . . Repair Stations . | . . . . Recycling Units . | . . . . Scanalyzers . | . . . . Garrison Access . | . . . . Terminal Hacks 2 | . . 1 1 Open Door 1 | . . 1 . Derelict Proto ID Bank 1 | . . . 1 Fabricator Hacks . | . . . . Repair Station Hacks . | . . . . Recycling Unit Hacks . | . . . . Scanalyzer . | . . . . Garrison Access Hacks . | . . . . Unauthorized Hacks 1 | . 1 . . Terminals 1 | . 1 . . Botnet 1 | . 1 . . Fabricators . | . . . . Repair Stations . | . . . . Recycling Units . | . . . . Scanalyzers . | . . . . Garrison Access . | . . . . Data Cores Recovered . | . . . . Used . | . . . . Hacking Detections 2 | . 2 . . Full Trace Events . | . . . . Feedback Events . | . . . . Feedback Blocked . | . . . . Robot Schematics Acquired . | . . . . Robots Built . | . . . . Authchips . | . . . . Time . | . . . . Total Robot Build Rating . | . . . . Part Schematics Acquired . | . . . . Parts Built . | . . . . Authchips . | . . . . Time . | . . . . Total Part Build Rating . | . . . . Parts Repaired . | . . . . Time . | . . . . Parts Recycled . | . . . . Recycled Matter . | . . . . Retrieved Matter . | . . . . Retrieved Components . | . . . . Parts Scanalyzed . | . . . . Part Schematics Acquired . | . . . . Parts Damaged . | . . . . Bothacking | -11 -10 -10 -10 ------------ Run | Yrd Mat Min Exi Used RIF Installer . | . . . . Robots Hacked . | . . . . Non-combat . | . . . . Combat . | . . . . Robot Hacks Applied . | . . . . Relay Couplers Released . | . . . . Fabnet Peak Effective % . | . . . . Robots Rewired . | . . . . Allies Hacked . | . . . . Hacks Repelled . | . . . . Allies | -11 -10 -10 -10 -------- Run | Yrd Mat Min Exi Total Allies . | . . . . Largest Group . | . . . . Highest-Rated Group . | . . . . Highest-Rated Ally . | . . . . Total Orders 1 | . . 1 . RETURN 1 | . . 1 . Ally Attacks 5 | . . 5 . Total Damage 15 | . . 15 . Kills . | . . . . Allies Corrupted . | . . . . Allies Melted . | . . . . Intel | -11 -10 -10 -10 ------- Run | Yrd Mat Min Exi Robot Analysis Total . | . . . . Derelict Logs Recovered 2 | . . 2 . Drone Launches 6 | . . 6 . Drone Recoveries 6 | . . 6 . Exploration | -11 -10 -10 -10 ------------- Run | Yrd Mat Min Exi Turns Passed 5755 | 31 383 669 4672 Spaces Moved 1292 | 26 217 523 526 Core 8 | . . . 8 Treads . | . . . . Legs 1284 | 26 217 523 518 Wheels . | . . . . Hover . | . . . . Flight . | . . . . Fastest Speed 50 | 120 120 120 50 Average Speed 119 | 120 120 120 118 Slowest Speed 120 | 120 120 120 120 Overloaded Moves . | . . . . Propulsion Burnouts . | . . . . Robots Hopped . | . . . . Cave-ins Triggered . | . . . . Exploration Rate (%) 54 | 3 46 97 71 Regions Visited 3 Branch Regions 2 Pre-discovered Areas 1 | . . 1 . Known Exits Taken . | . . . . Unknown Exits Taken 3 | 1 1 1 . Scrap Searched 1 | . . 1 . Spaces Dug 35 | . . . 35 Terrain Destroyed 48 | . . . 48 Melee . | . . . . Projectile 21 | . . . 21 AOE 27 | . . . 27 Terrain Rammed . | . . . . Walls Destroyed . | . . . . Machines Disabled . | . . . . Actions | -11 -10 -10 -10 --------- Run | Yrd Mat Min Exi Total 5243 | 25 286 549 4383 Wait 3814 | . 21 11 3782 Move 1289 | 25 216 522 526 Hop . | . . . . Pick Up 10 | . 5 1 4 Fast Attach 2 | . 1 1 . Attach . | . . . . Detach 1 | . . 1 . Swap 7 | . 5 1 1 Drop 16 | . 8 2 6 Fire 101 | . 29 8 64 Melee . | . . . . Ram . | . . . . Kick 3 | . 1 2 . Crush . | . . . . Escape Stasis . | . . . . Rewire . | . . . . Trap . | . . . . Miscellaneous . | . . . . Route ------- -11/Scrapyard -10/Materials (discovered 2 exits: [*Mat] / *Min) -10/Mines (discovered 3 exits: [*Mat x2] / *Exi) -10/Exiles History --------- Turn | Location | Event 1 | -11/Scrapyard | Discovered new exit (range 3) 32 | -11/Scrapyard | Entered Materials 263 | -10/Materials | Discovered new exit (range 16) 327 | -10/Materials | Build established: Mutant 361 | -10/Materials | Discovered new exit (range 16) 415 | -10/Materials | Entered Mines 547 | -10/Mines | Discovered new exit (range 7) 583 | -10/Mines | Learned location of Zion (-7) 584 | -10/Mines | Met a Derelict testing a Signal Generator 598 | -10/Mines | Found Signal Generator 829 | -10/Mines | Found the Drone Emporium 837 | -10/Mines | Found Prototype Device 837 | -10/Mines | Identified Thief Drone Bay 917 | -10/Mines | Deemed a non-threat by the Exiles lab entrance 917 | -10/Mines | Discovered new exit (range 5) 943 | -10/Mines | Learned Materials security intel 972 | -10/Mines | Discovered new exit (range 9) 1084 | -10/Mines | Entered Exiles 1113 | -10/Exiles | Met 8R-AWN 1135 | -10/Exiles | Met EX-HEX 1170 | -10/Exiles | Met EX-BIN 1186 | -10/Exiles | Aligned with FarCom system 1188 | -10/Exiles | Given EX-Vault access code 1216 | -10/Exiles | Opened EX-Vault 1223 | -10/Exiles | Found AWS/Autocannon 1282 | -10/Exiles | Exiles lab attacked by MAIN.C 1307 | -10/Exiles | Found Modified TNC 5752 | -10/Exiles | Released all parts (4) 5754 | -10/Exiles | Core integrity fell below 50% 5756 | -10/Exiles | Core integrity fell below 20% 5756 | -10/Exiles | Destroyed by P-60 Hacker with Shock Rifle Last Messages --------------- 04498_ Slug penetrates Wall. 04625_ Testing Apparatus damaged. 04696_ Drone sends a signal. 05614_ Slug penetrates Wall. 05751_ EX-Generator explodes. 05751_ Aluminum Leg destroyed. 05751_ Destroyed Aluminum Leg. 05751_ EM Pulse Gun destroyed. 05751_ Destroyed EM Pulse Gun. 05751_ Testing Apparatus damaged. 05751_ Mining Laser destroyed. 05751_ G-34 Mercenary destroyed. 05752_ Released Thief Drone Bay. 05752_ Released Aluminum Leg. 05752_ Released Sml. Storage Unit. 05752_ Released Ion Engine. 05752_ Slug penetrates P-60 Hacker. 05752_ P-60 Hacker suffers critical hit (Destroy). 05755_ Penetrated by Slug. Map ----- +----------------------------------------------------+ | ?????????????????????????????????????????????????# | | ?????????????????????????????????????????????????# | | ?????????????????????????????????????????????????# | | ?????????????????????????????????????????????????# | | ??????????????????????????????????????#"""""?????# | | ???????????????????????????????????????""""""????# | | ??????????????????????????????????????#" """"???# | | ?????????????????????????????"" "??????"" """???# | | ?????????????????????????????" "?????"" "????# | | ???????????????????????????###"""########"""###### | | ????????????????????? ?""""""" """""""" """""" | | ?????????????????????? """""" """"""" | | ??????????????????????? | | ??????????????????????? | | ??????????????????????? | | ??????????????????? ???" "" | | ??????????????????" ????"" " " "" " """" | | ?????????????????##"""###?####"""###" ###"""###### | | ??????????????????" ""#??#"" ""# #"" ""#??? | | ?????????????????""" """#??#""" ""# #""" ""#??? | | ????????????????#" """ "####" """ " "#" " "#??? | | ?????????????????"""""""# ##"""" ""# "#"""""""#??? | | ?????????????????""""" ; ; """[hp; """"""#??? | | ?????????????????#####;;;; ; ; ;;pph ;;#####????? | | ????????????????????# ; hp*h ;###???????? | | ????????????????????## ; @=! p ; #???????? | | ?????????????????????# ; !![ #;;# ######???????? | | ?????????????????????# ;;;;=* #######????????????? | | | | | | | | | | | | | | | | | | | | | | | | | | | | | | | | | | | | | | | | | | | | | +----------------------------------------------------+ Best States ------------- Heat Dissipation 25 Energy Generation 10 Energy Capacity 250 Matter Stores 300 Matter Capacity 300 Sight Range 16 Terrain Scan Density 10 Armor Coverage 150 Evasion (%) 55 Item Schematics ----------------- None Robot Schematics ------------------ None Fabricated ------------ Nothing Alien Tech Used ----------------- None Achievements -------------- None Challenges ------------ None Game ------ Seed DisruptionPlatingVibroblade Manual? 0 Play Time 00:20:16 Cumulative 213.6 hours Start 2025.03.23 @ 16:03:00 End 2025.03.23 @ 19:30:35 Sessions 1 Manual Loads 0 Difficulty Rogue Special Mode None Game No. 154 Rogue 154 Adventurer 0 Explorer 0 Win Type - Total 14 Types 12/0/0/2/0/0/0/0/0 Lore% 81 Gallery% 71 Achievement% 58 Wizard Run 0 Options --------- Layout 2 ASCII 1 Keyboard 1 Movement Arrows Keybinds 0 Fullscreen 1 Font 24/Proggy Map View 50x44 Zoom Use 0% Tactical HUD 1 Map Filters NONE Filters NONE Steam 1 RUN: b53460f3-8cf7-4600-a6af-4c1490a10e32